fUST/lending_fUST_20250826
["ID","MTS","AMOUNT","RATE_DAILY","PERIOD"]
[381420784,1756189123453,203.10504693,0.00027053,6]
[381420785,1756189304643,205.99092243,0.000199,2]
[381420786,1756189304761,205.99092234,0.00021627,2]
[381420787,1756189304941,205.99092234,0.00023353,2]
[381420788,1756189305062,205.99092234,0.0002508,2]
[381420789,1756189305272,205.99092234,0.00026806,6]
[381420790,1756189305404,205.99092234,0.00028533,10]
[381420791,1756189496594,227.44265212,0.000199,2]
[381420792,1756189496698,227.44265197,0.00021627,2]
[381420793,1756189496820,227.44265197,0.00023353,2]
[381420794,1756189496959,227.44265197,0.0002508,2]
[381420795,1756189497104,227.44265197,0.00026806,6]
[381420796,1756189701001,225.58113051,0.000199,2]
[381420797,1756189701345,225.58113037,0.00021627,2]
[381420798,1756189701411,225.58113037,0.00023353,2]
[381420799,1756189701455,225.58113037,0.0002508,2]
[381420800,1756189701561,225.58113037,0.00026806,6]
[381420801,1756189704407,204.41350146,0.000176,2]
[381420802,1756189710565,178.18435062,0.00022,2]
[381420803,1756189716388,1873.39868224,0.00024,60]
[381420804,1756189727043,6616.10781369,0.00019063,2]
[381420805,1756189727066,661.00612473,0.00019063,2]
[381420822,1756189831915,-225.58113037,0.00028533,10]
[381420823,1756189831926,-30.35424984,0.0003,120]
[381420824,1756189831939,-715.09824596,0.0003,120]
[381420825,1756189831951,-386.10175404,0.0003,10]
[381420840,1756189837855,-17.27472147,0.0003,10]
[381420841,1756189837865,-1000.0,0.00030008,14]
[381420842,1756189837876,-185.1871295,0.00030132,2]
[381420843,1756189837886,-225.58113037,0.00030259,13]
[381420844,1756189837896,-2027.05796798,0.00031788,2]
[381420845,1756189837906,-3610.88639435,0.00031788,2]
[381420846,1756189837915,-500.0,0.00031887,2]
[381420847,1756189837925,-233.5633648,0.00031887,2]
[381420848,1756189837935,-687.35445681,0.00031887,2]
[381420849,1756189837945,-687.35445681,0.00031887,2]
[381420850,1756189837955,-687.35445681,0.00031887,2]
[381420851,1756189837964,-687.35445681,0.00031887,2]
[381420852,1756189837973,-687.35445681,0.00031887,2]
[381420853,1756189837982,-687.35445681,0.00031887,2]
[381420854,1756189837993,-687.35445681,0.00031887,2]
[381420855,1756189838003,-687.35445681,0.00031887,2]
[381420856,1756189838014,-687.35445681,0.00031887,2]
[381420857,1756189838026,-687.35445681,0.00031887,2]
[381420858,1756189838035,-687.35445681,0.00031887,2]
[381420859,1756189838046,-687.35445681,0.00031887,2]
[381420860,1756189838059,-687.35445681,0.00031887,2]
[381420861,1756189838070,-687.35445681,0.00031887,2]
[381420862,1756189838080,-226.2686584,0.00031887,2]
[381420863,1756189838095,-178.50746004,0.00031887,2]
[381420864,1756189838105,-500.0,0.00031887,2]
[381420865,1756189838115,-211.0631746,0.00031887,2]
[381420866,1756189838124,-338.94789374,0.00031887,2]
[381420867,1756189838134,-500.0,0.00031887,2]
[381420868,1756189838143,-500.0,0.00031887,2]
[381420869,1756189838153,-687.35445681,0.00031887,2]
[381420870,1756189838162,-500.0,0.00031887,2]
[381420871,1756189838171,-500.0,0.00031887,2]
[381420872,1756189838181,-282.66783582,0.00031887,2]
[381420873,1756189838191,-217.20779543,0.00031887,2]
[381420874,1756189838200,-225.0264886,0.00031887,2]
[381420875,1756189838209,-687.35445681,0.00031887,2]
[381420876,1756189838219,-728.59572422,0.00031887,2]
[381420877,1756189838228,-728.59572422,0.00031887,2]
[381420878,1756189838237,-728.59572422,0.00031887,2]
[381420879,1756189838247,-728.59572422,0.00031887,2]
[381420880,1756189838256,-728.59572422,0.00031887,2]
[381420881,1756189838266,-728.59572422,0.00031887,2]
[381420882,1756189838275,-728.59572422,0.00031887,2]
[381420883,1756189838285,-712.10645256,0.00031887,2]
[381420884,1756189838294,-712.10645256,0.00031887,2]
[381420885,1756189838304,-712.10645256,0.00031887,2]
[381420886,1756189838313,-712.10645256,0.00031887,2]
[381420887,1756189838322,-712.10645256,0.00031887,2]
[381420888,1756189838332,-800.0,0.00031888,60]
[381420889,1756189838341,-808535.05907901,0.00031888,20]
[381420890,1756189838351,-5980.15968823,0.00031888,7]
[381420891,1756189838360,-858.77630464,0.00031888,30]
[381420892,1756189838369,-49857.30073436,0.00031888,2]
[381420893,1756189838378,-1189.90614119,0.00031888,2]
[381420894,1756189838388,-882.10293333,0.00031888,30]
[381420895,1756189838397,-579.06340537,0.00031888,5]
[381420896,1756189838407,-6409.8759588,0.00031888,30]
[381420897,1756189838416,-68736.942135,0.00031888,2]
[381420898,1756189838426,-258.20860713,0.00031888,2]
[381420899,1756189838444,-921.16,0.000319,7]
[381420900,1756189838454,-4868.09,0.000319,2]
[381420901,1756189838463,-9281.44,0.000319,7]
[381420902,1756189838473,-500.0,0.000319,5]
[381420903,1756189838482,-171.0,0.000319,7]
[381420904,1756189838492,-500.0,0.000319,5]
[381420905,1756189838501,-500.0,0.000319,5]
[381420906,1756189838512,-225.58113037,0.00031986,17]
[381420907,1756189838521,-500.0,0.00032161,2]
[381420908,1756189838531,-162.0,0.00033,14]
[381420909,1756189838542,-2027.05796792,0.00033612,2]
[381420910,1756189838552,-225.58113037,0.00033712,21]
[381420911,1756189838569,-2027.05796792,0.00035436,2]
[381420912,1756189838578,-225.58113037,0.00035439,24]
[381420913,1756189838588,-3610.88639433,0.00035794,2]
[381420914,1756189838598,-186.001471,0.00035795,2]
[381420915,1756189838607,-1931.9655108,0.00036119,2]
[381420916,1756189838616,-666.0,0.00036128,2]
[381420917,1756189838626,-409.0,0.00036717,2]
[381420918,1756189838635,-301.0,0.00037054,3]
[381420919,1756189838644,-168.0,0.00037055,2]
[381420920,1756189838654,-225.58113037,0.00037166,28]
[381420921,1756189838663,-2027.05796792,0.0003726,2]
[381420922,1756189838672,-171.0,0.000373,7]
[381420923,1756189838682,-168.0,0.00037383,2]
[381420924,1756189838691,-9281.44,0.000376,14]
[381420925,1756189838700,-168.0,0.00037612,2]
[381420926,1756189838710,-921.16,0.000377,7]
[381420927,1756189838720,-4868.09,0.000377,14]
[381420928,1756189838730,-217.18350301,0.000377,7]
[381420929,1756189838741,-376.39720582,0.000377,7]
[381420930,1756189838751,-176562.75868028,0.00038,120]
[381420931,1756189838762,-1023.75386135,0.00038,30]
[381420932,1756189838773,-470.21261488,0.00038001,7]
[381420933,1756189838783,-160.0,0.00038641,2]
[381420934,1756189838793,-160.0,0.0003865,2]
[381420935,1756189838802,-168.0,0.00038711,2]
[381420936,1756189838812,-225.58113037,0.00038892,32]
[381420937,1756189838821,-2027.05796792,0.00039085,2]
[381420938,1756189838831,-2069.65194848,0.00039396,2]
[381420939,1756189838840,-500.0,0.00039461,14]
[381420940,1756189838851,-926.74,0.00039461,120]
[381420941,1756189838862,-78822.31768965,0.00039462,3]
[381420942,1756189839830,-199.0,0.00028433,10]
[381420943,1756189839840,-14106.92762625,0.00039462,3]
[381420944,1756189839850,-217.18350301,0.00039462,3]
[381420945,1756189839859,-376.39720582,0.00039462,3]
[381420946,1756189839869,-299.61533008,0.00039471,61]
[381420947,1756189839878,-104863.65943716,0.00039472,2]
[381420948,1756189839925,-1054.27298042,0.00039472,2]
[381420949,1756189839937,-40743.12423914,0.00039472,2]
[381420961,1756189842908,-320.0369294,0.00031788,2]
[381420963,1756189842919,-831.64895467,0.00039462,10]
[381420964,1756189842999,-124.38104533,0.00039462,10]
[381420965,1756189843010,-5020.63525374,0.00039472,2]
[381420966,1756189843086,-336.46734835,0.00039472,2]
[381420969,1756189845928,-1090.3460293,0.00039472,2]
[381420970,1756189846114,-313.317136,0.00039472,2]
[381420971,1756189846218,-1932.02746306,0.00039472,2]
[381420972,1756189882287,205.14857573,0.000199,2]
[381420973,1756189882412,205.14857568,0.00021826,2]
[381420974,1756189882541,205.14857568,0.00023752,2]
[381420975,1756189882698,205.14857568,0.00025677,3]
[381420976,1756189882817,205.14857568,0.00027603,8]
[381420985,1756190058940,214.80467041,0.000199,2]
[381420986,1756190059087,214.8046704,0.00021627,2]
[381420987,1756190059206,214.8046704,0.00023353,2]
[381420988,1756190059321,214.8046704,0.0002508,2]
[381420989,1756190059688,214.8046704,0.00026806,6]
[381420993,1756190238383,206.00071443,0.000199,2]
[381420994,1756190238507,206.00071428,0.00021688,2]
[381420995,1756190238624,206.00071428,0.00023476,2]
[381420996,1756190238758,206.00071428,0.00025265,3]
[381420997,1756190238880,206.00071428,0.00027053,6]
[381420998,1756190365950,166.596562,0.00013699,2]
[381420999,1756190415327,301.55758166,0.000199,2]
[381421000,1756190415459,301.55758158,0.00021627,2]
[381421001,1756190415600,301.55758158,0.00023353,2]
[381421002,1756190415912,301.55758158,0.0002508,2]
[381421003,1756190416045,301.55758158,0.00026806,6]
[381421004,1756190417171,-257.69,0.00028533,10]
[381421005,1756190420057,-43.86758158,0.00028533,10]
[381421006,1756190420084,-145.44938106,0.00029162,15]
[381421007,1756190421712,199.0,0.00028433,10]
[381421009,1756190600778,343.53908459,0.000199,2]
[381421010,1756190600903,343.53908438,0.00021627,2]
[381421011,1756190601287,343.53908438,0.00023353,2]
[381421012,1756190601354,343.53908438,0.0002508,2]
[381421013,1756190601418,343.53908438,0.00026806,6]
[381421014,1756190601632,-300.0,0.00028533,10]
[381421015,1756190607703,-152.0,0.00028433,10]
[381421016,1756190611271,-47.0,0.00028433,10]
[381421017,1756190611301,-43.53908438,0.00028533,10]
[381421020,1756190781663,311.87042548,0.000199,2]
[381421021,1756190781794,311.87042529,0.00021627,2]
[381421022,1756190781929,311.87042529,0.00023353,2]
[381421023,1756190782052,311.87042529,0.0002508,2]
[381421024,1756190782189,311.87042529,0.00026806,6]
[381421025,1756190783939,-165.86420085,0.00028533,10]
[381421026,1756190791616,-152.0,0.00028433,10]
[381421027,1756190793256,-47.0,0.00028433,10]
[381421028,1756190793287,-146.00622444,0.00028533,10]
[381421033,1756190961415,302.59223735,0.000199,2]
[381421034,1756190961562,302.59223733,0.00021627,2]
[381421035,1756190961694,302.59223733,0.00023353,2]
[381421036,1756190961822,302.59223733,0.0002508,2]
[381421037,1756190962012,302.59223733,0.00026806,6]
[381421080,1756191032446,-302.59223733,0.00028533,10]
[381421082,1756191032456,-6.02061894,0.00029162,15]
[381421084,1756191032466,-151.48,0.00029162,15]
[381421085,1756191032475,-151.47,0.00029262,15]
[381421087,1756191032484,-151.48,0.00029262,15]
[381421090,1756191032493,-151.47,0.00029362,15]
[381421093,1756191032502,-151.48,0.00029362,15]
[381421096,1756191032512,-83.82293597,0.00029462,15]
[381421122,1756191037973,-67.64706403,0.00029462,15]
[381421124,1756191037983,-151.48,0.00029462,15]
[381421126,1756191037992,-151.47,0.00029562,15]
[381421128,1756191038002,-151.48,0.00029562,15]
[381421130,1756191038011,-151.47,0.00029662,15]
[381421132,1756191038021,-151.48,0.00029662,15]
[381421134,1756191038031,-151.47,0.00029762,15]
[381421136,1756191038040,-151.48,0.00029762,15]
[381421138,1756191038050,-1200.0,0.00029861,2]
[381421140,1756191038059,-151.47,0.00029862,15]
[381421142,1756191038068,-151.48,0.00029862,15]
[381421144,1756191038077,-151.47,0.00029962,15]
[381421146,1756191038086,-151.48,0.00029962,15]
[381421148,1756191038096,-300.0,0.00029998,2]
[381421151,1756191038105,-300.0,0.00029998,2]
[381421153,1756191038114,-300.0,0.00029999,2]
[381421155,1756191038123,-300.0,0.00029999,2]
[381421157,1756191038132,-300.0,0.00029999,2]
[381421159,1756191038142,-322.11795343,0.0003,14]
[381421161,1756191038151,-899.0,0.0003006,2]
[381421163,1756191038160,-151.47,0.00030062,15]
[381421165,1756191038169,-151.48,0.00030062,15]
[381421167,1756191038179,-151.47,0.00030162,15]
[381421169,1756191038188,-151.48,0.00030162,15]
[381421171,1756191038198,-2706.08867979,0.000302,2]
[381421173,1756191038207,-302.59223733,0.00030259,13]
[381421175,1756191038216,-151.47,0.00030262,15]
[381421176,1756191038225,-151.48,0.00030262,15]
[381421178,1756191038235,-151.47,0.00030362,15]
[381421180,1756191038244,-151.48,0.00030362,15]
[381421182,1756191038253,-151.47,0.00030462,15]
[381421184,1756191038263,-151.48,0.00030462,15]
[381421186,1756191038272,-151.47,0.00030562,15]
[381421188,1756191038281,-151.48,0.00030562,15]
[381421190,1756191038290,-151.47,0.00030662,15]
[381421192,1756191038300,-151.48,0.00030662,15]
[381421194,1756191038310,-151.47,0.00030762,15]
[381421196,1756191038319,-151.48,0.00030762,15]
[381421198,1756191038328,-151.47,0.00030862,15]
[381421200,1756191038337,-151.48,0.00030862,15]
[381421202,1756191038347,-151.48,0.00030962,15]
[381421204,1756191038356,-163.0,0.00031,120]
[381421206,1756191038366,-151.48,0.00031062,15]
[381421207,1756191038375,-151.48,0.00031162,15]
[381421208,1756191038384,-151.48,0.00031262,15]
[381421209,1756191038393,-151.48,0.00031362,15]
[381421210,1756191038403,-151.48,0.00031462,15]
[381421211,1756191038411,-151.48,0.00031562,15]
[381421212,1756191038421,-151.48,0.00031662,15]
[381421213,1756191038430,-151.48,0.00031762,15]
[381421214,1756191038439,-160.0,0.00031861,2]
[381421215,1756191038448,-151.48,0.00031862,15]
[381421216,1756191038457,-198.0,0.00031862,15]
[381421218,1756191038467,-500.0,0.00031862,15]
[381421220,1756191038476,-210.90349589,0.00031862,15]
[381421222,1756191038485,-151.0,0.00031862,15]
[381421224,1756191038494,-151.0,0.00031862,15]
[381421226,1756191038503,-151.0,0.00031862,15]
[381421228,1756191038513,-151.0,0.00031874,2]
[381421230,1756191038522,-151.0,0.00031874,2]
[381421232,1756191038531,-500.0,0.00031874,2]
[381421234,1756191038541,-151.0,0.00031874,2]
[381421236,1756191038550,-151.48,0.00031962,15]
[381421238,1756191038559,-302.59223733,0.00031986,17]
[381421240,1756191038569,-1187.57552747,0.00032035,2]
[381421241,1756191038579,-151.48,0.00032062,15]
[381421243,1756191038588,-252.27417582,0.00032113,2]
[381421245,1756191038598,-261.74159377,0.00032113,2]
[381421247,1756191038607,-500.0,0.00032113,2]
[381421249,1756191038616,-500.0,0.00032113,2]
[381421251,1756191038625,-500.0,0.00032113,2]
[381421253,1756191038634,-500.0,0.00032113,2]
[381421255,1756191038644,-500.0,0.00032113,2]
[381421257,1756191038653,-500.0,0.00032113,2]
[381421259,1756191038662,-500.0,0.00032113,2]
[381421261,1756191038671,-500.0,0.00032113,2]
[381421263,1756191038680,-500.0,0.00032113,2]
[381421265,1756191038690,-500.0,0.00032113,2]
[381421267,1756191038699,-500.0,0.00032113,2]
[381421269,1756191038708,-500.0,0.00032113,2]
[381421271,1756191038718,-500.0,0.00032113,2]
[381421273,1756191038727,-500.0,0.00032113,2]
[381421275,1756191038737,-500.0,0.00032113,2]
[381421277,1756191038747,-500.0,0.00032113,2]
[381421279,1756191038757,-500.0,0.00032113,2]
[381421281,1756191038772,-243.61458115,0.00032113,2]
[381421283,1756191038782,-500.0,0.00032113,2]
[381421285,1756191038792,-500.0,0.00032113,2]
[381421287,1756191038801,-324.31807124,0.00032113,2]
[381421289,1756191038812,-500.0,0.00032113,2]
[381421291,1756191038823,-500.0,0.00032113,2]
[381421293,1756191038832,-638.77448168,0.00032113,2]
[381421295,1756191038842,-500.0,0.00032113,2]
[381421297,1756191038852,-500.0,0.00032113,2]
[381421299,1756191038861,-500.0,0.00032113,2]
[381421301,1756191038871,-500.0,0.00032113,2]
[381421303,1756191038880,-500.0,0.00032113,2]
[381421305,1756191038890,-434.906699,0.00032113,2]
[381421307,1756191038899,-500.0,0.00032113,2]
[381421309,1756191038909,-500.0,0.00032113,2]
[381421311,1756191038919,-500.0,0.00032113,2]
[381421313,1756191038928,-500.0,0.00032113,2]
[381421336,1756191039095,-500.0,0.00032113,2]
[381421339,1756191039153,-500.0,0.00032113,2]
[381421341,1756191039163,-500.0,0.00032113,2]
[381421344,1756191039173,-500.0,0.00032113,2]
[381421346,1756191039183,-500.0,0.00032113,2]
[381421348,1756191039192,-500.0,0.00032113,2]
[381421350,1756191039202,-500.0,0.00032113,2]
[381421352,1756191039211,-500.0,0.00032113,2]
[381421354,1756191039220,-500.0,0.00032113,2]
[381421356,1756191039230,-500.0,0.00032113,2]
[381421358,1756191039240,-340.57246576,0.00032113,2]
[381421360,1756191039249,-500.0,0.00032113,2]
[381421362,1756191039260,-500.0,0.00032113,2]
[381421364,1756191039269,-500.0,0.00032113,2]
[381421366,1756191039278,-20000.02,0.00032114,2]
[381421368,1756191039289,-500.0,0.00032136,15]
[381421370,1756191039298,-151.0,0.00032136,15]
[381421372,1756191039307,-500.0,0.00032148,2]
[381421374,1756191039316,-151.48,0.00032162,15]
[381421376,1756191039325,-500.0,0.000322,5]
[381421378,1756191039335,-151.48,0.00032262,15]
[381421380,1756191039344,-1680.0,0.00032325,3]
[381421382,1756191039353,-420.0,0.00032331,2]
[381421384,1756191039362,-280.0,0.00032332,3]
[381421386,1756191039372,-414.0,0.00032332,3]
[381421388,1756191039381,-151.48,0.00032362,15]
[381421390,1756191039391,-161.64253542,0.0003241,15]
[381421392,1756191039400,-198.0,0.0003241,15]
[381421394,1756191039409,-500.0,0.00032422,2]
[381421396,1756191039419,-151.48,0.00032462,15]
[381421398,1756191039428,-300.0,0.00032515,20]
[381421400,1756191039437,-300.0,0.00032515,20]
[381421402,1756191039447,-300.0,0.00032515,20]
[381421404,1756191039456,-151.48,0.00032562,15]
[381421406,1756191039466,-151.48,0.00032662,15]
[381421408,1756191039475,-500.0,0.00032696,2]
[381421410,1756191039485,-151.48,0.00032762,15]
[381421412,1756191039494,-151.48,0.00032862,15]
[381421414,1756191039503,-151.53,0.00032962,60]
[381421416,1756191039513,-500.0,0.0003297,2]
[381421418,1756191039523,-500.0,0.00033244,2]
[381421420,1756191039532,-500.0,0.00033518,2]
[381421422,1756191039542,-302.59223733,0.00033712,21]
[381421424,1756191039551,-500.0,0.00033792,2]
[381421425,1756191039560,-1187.5755274,0.00033902,2]
[381421428,1756191039570,-500.0,0.00034066,2]
[381421430,1756191039579,-500.0,0.0003434,2]
[381421431,1756191039588,-150.996932,0.00034389,20]
[381421433,1756191039598,-517.68110039,0.00034614,2]
[381421435,1756191039607,-171.0,0.00034766,120]
[381421437,1756191039617,-587.0,0.00034846,2]
[381421439,1756191039627,-232.53539143,0.00035413,2]
[381421441,1756191039636,-302.59223733,0.00035439,24]
[381421443,1756191039646,-500.0,0.00035616,7]
[381421446,1756191039656,-500.0,0.00035616,7]
[381421448,1756191039666,-279.59181732,0.00035616,7]
[381421450,1756191039676,-1187.5755274,0.00035769,2]
[381421452,1756191039685,-150.996932,0.00036779,7]
[381421454,1756191039694,-211.0,0.00036867,2]
[381421456,1756191039703,-150.996932,0.00036926,20]
[381421458,1756191039712,-302.59223733,0.00037166,28]
[381421460,1756191039722,-211.0,0.00037402,120]
[381421462,1756191039731,-409.0,0.00037474,2]
[381421463,1756191039740,-266.0,0.00037556,2]
[381421465,1756191039750,-211.0,0.00037572,7]
[381421468,1756191039761,-1187.5755274,0.00037636,2]
[381421469,1756191039773,-211.0,0.00037645,2]
[381421471,1756191039785,-212.0,0.00037712,2]
[381421474,1756191039795,-933.9184657,0.00037818,2]
[381421475,1756191039806,-211.0,0.00037881,2]
[381421477,1756191039816,-211.0,0.00037954,2]
[381421480,1756191039827,-211.0,0.00038024,2]
[381421481,1756191039837,-212.0,0.00038247,120]
[381421484,1756191039850,-506.14664166,0.00038396,2]
[381421485,1756191039861,-2024.58656664,0.00038396,2]
[381421487,1756191039871,-150.996932,0.00038558,7]
[381421490,1756191039880,-1008.16,0.00038722,10]
[381421492,1756191039890,-15552.7923738,0.00038732,2]
[381421493,1756191039900,-213.0,0.00038878,7]
[381421495,1756191039909,-150.996932,0.00038886,2]
[381421497,1756191039919,-302.59223733,0.00038892,32]
[381421499,1756191039928,-211.0,0.00038973,7]
[381421501,1756191039938,-17076.7975787,0.0003899,3]
[381421503,1756191039947,-359.01318992,0.0003899,3]
[381421505,1756191039957,-160.0,0.0003899,3]
[381421507,1756191039967,-376.39720582,0.0003899,3]
[381421509,1756191039978,-1000.0,0.00039,120]
[381421511,1756191039988,-1029.48355832,0.00039,120]
[381421513,1756191039998,-212.0,0.00039073,2]
[381421515,1756191040008,-211.0,0.00039182,2]
[381421517,1756191040018,-1203.62879811,0.00039279,2]
[381421519,1756191040029,-160.0,0.00039314,2]
[381421521,1756191040045,-160.0,0.00039314,2]
[381421523,1756191040054,-211.0,0.00039338,2]
[381421525,1756191040065,-211.0,0.00039346,7]
[381421528,1756191040074,-170.81,0.00039352,3]
[381421530,1756191040084,-512.47,0.00039352,3]
[381421532,1756191040094,-1096.85,0.00039361,120]
[381421534,1756191040103,-136614.38063,0.00039362,3]
[381421536,1756191040112,-2872.10551936,0.00039362,3]
[381421538,1756191040121,-370000.0,0.00039372,2]
[381421540,1756191040131,-213.0,0.00039379,2]
[381421542,1756191040140,-1395.9,0.000394,7]
[381421544,1756191040149,-15679.05,0.000394,14]
[381421546,1756191040159,-6790.62,0.000394,14]
[381421547,1756191040168,-500.0,0.00039401,7]
[381421549,1756191040178,-211.0,0.00039417,2]
[381421552,1756191040187,-211.0,0.00039426,7]
[381421554,1756191040197,-68307.190315,0.0003946,3]
[381421555,1756191040207,-1436.05275968,0.0003946,3]
[381421557,1756191040217,-150.996932,0.00039463,20]
[381421559,1756191040226,-151.0,0.0003947,30]
[381421562,1756191040237,-16000.0,0.0003947,61]
[381421564,1756191040246,-151.0,0.0003947,61]
[381421565,1756191040255,-250.0,0.0003947,61]
[381421567,1756191040264,-16592.0,0.0003947,61]
[381421569,1756191040274,-151.0,0.0003947,61]
[381421571,1756191040285,-151.0,0.0003947,61]
[381421573,1756191040294,-167.83417776,0.0003947,61]
[381421576,1756191040304,-151.0,0.0003947,61]
[381421577,1756191040313,-17205.904,0.0003947,61]
[381421579,1756191040322,-250.0,0.0003947,61]
[381421581,1756191040332,-151.0,0.0003947,61]
[381421583,1756191040341,-300.0,0.0003947,61]
[381421585,1756191040351,-300.0,0.0003947,61]
[381421587,1756191040360,-151.0,0.0003947,61]
[381421589,1756191040370,-250.0,0.0003947,61]
[381421591,1756191040379,-151.0,0.0003947,61]
[381421593,1756191040388,-156.587,0.0003947,61]
[381421596,1756191040397,-300.0,0.0003947,61]
[381421598,1756191040407,-151.0,0.0003947,61]
[381421600,1756191040416,-162.380719,0.0003947,61]
[381421602,1756191040425,-300.0,0.0003947,61]
[381421604,1756191040435,-250.0,0.0003947,61]
[381421606,1756191040444,-151.0,0.0003947,61]
[381421608,1756191040453,-151.0,0.0003947,61]
[381421609,1756191040462,-168.3888056,0.0003947,61]
[381421611,1756191040471,-300.0,0.0003947,61]
[381421613,1756191040481,-250.0,0.0003947,61]
[381421615,1756191040490,-151.0,0.0003947,61]
[381421617,1756191040500,-174.61919141,0.0003947,61]
[381421620,1756191040509,-151.0,0.0003947,30]
[381421621,1756191040518,-250.0,0.0003947,61]
[381421623,1756191040527,-151.0,0.0003947,61]
[381421625,1756191040538,-300.0,0.0003947,61]
[381421627,1756191040547,-300.0,0.0003947,61]
[381421629,1756191040557,-181.08010149,0.0003947,61]
[381421631,1756191040566,-250.0,0.0003947,61]
[381421633,1756191040575,-300.0,0.0003947,61]
[381421636,1756191040585,-151.0,0.0003947,61]
[381421638,1756191040594,-151.0,0.0003947,61]
[381421640,1756191040603,-151.0,0.0003947,61]
[381421642,1756191040612,-300.0,0.0003947,61]
[381421644,1756191040621,-250.0,0.0003947,61]
[381421646,1756191040630,-187.78006525,0.0003947,61]
[381421648,1756191040640,-151.0,0.0003947,61]
[381421650,1756191040649,-151.0,0.0003947,61]
[381421652,1756191040658,-151.0,0.0003947,61]
[381421654,1756191040668,-151.0,0.0003947,61]
[381421656,1756191040677,-194.72792766,0.0003947,61]
[381421658,1756191040687,-300.0,0.0003947,61]
[381421660,1756191040696,-151.0,0.0003947,61]
[381421662,1756191040705,-207.30377708,0.0003947,61]
[381421664,1756191040714,-151.0,0.0003947,61]
[381421666,1756191040723,-151.0,0.0003947,61]
[381421668,1756191040735,-250.0,0.0003947,61]
[381421670,1756191040744,-201.93286099,0.0003947,61]
[381421672,1756191040754,-165.13039111,0.0003947,61]
[381421674,1756191040767,-300.0,0.0003947,61]
[381421676,1756191040777,-151.0,0.0003947,61]
[381421678,1756191040787,-151.0,0.0003947,61]
[381421680,1756191040796,-209.40437684,0.0003947,61]
[381421682,1756191040805,-250.0,0.0003947,61]
[381421684,1756191040815,-300.0,0.0003947,61]
[381421686,1756191040824,-151.0,0.0003947,61]
[381421688,1756191040833,-151.0,0.0003947,61]
[381421690,1756191040842,-151.0,0.0003947,61]
[381421691,1756191040852,-217.15233878,0.0003947,61]
[381421693,1756191040861,-1888.0,0.0003947,61]
[381421695,1756191040870,-300.0,0.0003947,61]
[381421697,1756191040881,-300.0,0.0003947,61]
[381421700,1756191040891,-151.59155591,0.0003947,61]
[381421702,1756191040900,-151.0,0.0003947,61]
[381421704,1756191040909,-1957.856,0.0003947,61]
[381421706,1756191040919,-17842.522448,0.0003947,61]
[381421708,1756191040928,-151.0,0.0003947,30]
[381421709,1756191040938,-300.0,0.0003947,61]
[381421711,1756191040947,-225.18697532,0.0003947,61]
[381421713,1756191040957,-18502.69577858,0.0003947,61]
[381421715,1756191040966,-2030.296672,0.0003947,61]
[381421718,1756191040976,-233.51889341,0.0003947,61]
[381421720,1756191040985,-300.0,0.0003947,61]
[381421722,1756191040995,-19187.29552238,0.0003947,61]
[381421724,1756191041006,-242.15909246,0.0003947,61]
[381421726,1756191041016,-300.0,0.0003947,61]
[381421728,1756191041025,-251.11897888,0.0003947,61]
[381421730,1756191041038,-19897.22545671,0.0003947,61]
[381421732,1756191041048,-260.4103811,0.0003947,61]